fUST/lending_fUST_20250913
["ID","MTS","AMOUNT","RATE_DAILY","PERIOD"]
[385303437,1757755904518,-480.0,0.00027123,3]
[385303438,1757755904527,-480.0,0.00027123,3]
[385303439,1757755904536,-480.0,0.00027123,3]
[385303440,1757755904545,-480.0,0.00027123,3]
[385303441,1757755904554,-480.0,0.00027123,3]
[385303442,1757755904564,-480.0,0.00027123,3]
[385303443,1757755904573,-496.3648288,0.00027123,3]
[385303444,1757755904582,-480.0,0.00027123,3]
[385303445,1757755904592,-480.0,0.00027123,3]
[385303446,1757755904602,-499.1,0.00027123,3]
[385303447,1757755904612,-480.69,0.00027123,3]
[385303448,1757755904621,-480.0,0.00027123,3]
[385303449,1757755904631,-480.0,0.00027123,3]
[385303450,1757755904640,-480.0,0.00027123,3]
[385303451,1757755904650,-489.24610794,0.00027123,3]
[385303452,1757755904659,-519.58,0.00027123,3]
[385303453,1757755904669,-480.0,0.00027123,3]
[385303454,1757755904680,-480.0,0.00027123,3]
[385303455,1757755904690,-619.65,0.00027123,3]
[385303456,1757755904699,-480.0,0.00027123,3]
[385303457,1757755904709,-386.26707835,0.00027123,3]
[385303458,1757755904719,-587.99,0.00027123,3]
[385303459,1757755904728,-459.24721149,0.00027123,3]
[385303460,1757755904737,-480.0,0.00027123,3]
[385303461,1757755904747,-523.11,0.00027123,3]
[385303462,1757755904756,-480.0,0.00027123,3]
[385303463,1757755904765,-653.04,0.00027123,3]
[385303464,1757755904775,-687.36,0.00027123,3]
[385303465,1757755904785,-480.0,0.00027123,3]
[385303466,1757755904795,-228.95975594,0.00027123,3]
[385303467,1757755904805,-227.13058524,0.00027123,3]
[385303468,1757755904814,-480.0,0.00027123,3]
[385303469,1757755904824,-484.0,0.00027123,3]
[385303470,1757755904833,-480.0,0.00027123,3]
[385303471,1757755904842,-480.0,0.00027123,3]
[385303472,1757755904852,-480.0,0.00027123,3]
[385303473,1757755904861,-523.39,0.00027123,3]
[385303474,1757755904870,-480.0,0.00027123,3]
[385303475,1757755904880,-509.39,0.00027123,3]
[385303476,1757755904890,-480.0,0.00027123,3]
[385303477,1757755904899,-480.0,0.00027123,3]
[385303478,1757755904909,-480.0,0.00027123,3]
[385303479,1757755904920,-480.0,0.00027123,3]
[385303480,1757755904930,-480.0,0.00027123,3]
[385303481,1757755904940,-480.0,0.00027123,3]
[385303482,1757755904949,-480.0,0.00027123,3]
[385303483,1757755904959,-480.0,0.00027123,3]
[385303484,1757755904968,-480.0,0.00027123,3]
[385303485,1757755904978,-398.15249951,0.00027123,3]
[385303486,1757755904987,-488.84452631,0.00027123,3]
[385303487,1757755904996,-480.0,0.00027123,3]
[385303488,1757755905005,-1336.28,0.00027123,3]
[385303489,1757755905015,-480.0,0.00027123,3]
[385303490,1757755905024,-480.0,0.00027123,3]
[385303491,1757755905033,-480.0,0.00027123,3]
[385303492,1757755905043,-480.0,0.00027123,3]
[385303493,1757755905053,-480.0,0.00027123,3]
[385303494,1757755905062,-480.0,0.00027123,3]
[385303495,1757755905071,-606.48475593,0.00027123,3]
[385303496,1757755905080,-480.0,0.00027123,3]
[385303497,1757755905089,-480.0,0.00027123,3]
[385303498,1757755905098,-480.0,0.00027123,3]
[385303499,1757755905108,-480.0,0.00027123,3]
[385303500,1757755905117,-501.62,0.00027123,3]
[385303501,1757755905126,-480.0,0.00027123,3]
[385303502,1757755905134,-514.0,0.00027123,3]
[385303503,1757755905144,-480.0,0.00027123,3]
[385303504,1757755905153,-480.0,0.00027123,3]
[385303505,1757755905162,-312.75617806,0.00027123,3]
[385303506,1757755905171,-480.0,0.00027123,3]
[385303507,1757755905180,-480.0,0.00027123,3]
[385303508,1757755905189,-480.0,0.00027123,3]
[385303509,1757755905198,-480.0,0.00027123,3]
[385303510,1757755905207,-480.0,0.00027123,3]
[385303511,1757755905216,-537.4,0.00027123,3]
[385303512,1757755905225,-480.0,0.00027123,3]
[385303513,1757755905234,-560.013609,0.00027123,3]
[385303514,1757755905243,-606.47,0.00027123,3]
[385303515,1757755905252,-627.39,0.00027123,3]
[385303516,1757755905264,-480.0,0.00027123,3]
[385303517,1757755905273,-480.0,0.00027123,3]
[385303518,1757755905283,-515.6,0.00027123,3]
[385303519,1757755905292,-480.0,0.00027123,3]
[385303520,1757755905301,-426.40095556,0.00027123,3]
[385303521,1757755905310,-480.0,0.00027123,3]
[385303522,1757755905319,-480.0,0.00027123,3]
[385303523,1757755905328,-480.0,0.00027123,3]
[385303524,1757755905338,-485.82138291,0.00027123,3]
[385303525,1757755905347,-452.39171997,0.00027123,3]
[385303526,1757755905487,-480.0,0.00027123,3]
[385303527,1757755905513,-480.0,0.00027123,3]
[385303528,1757755905522,-480.0,0.00027123,3]
[385303529,1757755905531,-480.0,0.00027123,3]
[385303530,1757755905541,-480.0,0.00027123,3]
[385303531,1757755905549,-4289.53,0.00027123,3]
[385303532,1757755905559,-480.0,0.00027123,3]
[385303533,1757755905569,-480.0,0.00027123,3]
[385303534,1757755905578,-615.59,0.00027123,3]
[385303535,1757755905587,-1017.38,0.00027123,3]
[385303536,1757755905597,-480.0,0.00027123,3]
[385303537,1757755905606,-480.0,0.00027123,3]
[385303538,1757755905615,-480.0,0.00027123,3]
[385303539,1757755905624,-480.0,0.00027123,3]
[385303540,1757755905634,-480.0,0.00027123,3]
[385303541,1757755905643,-480.0,0.00027123,3]
[385303542,1757755905653,-480.0,0.00027123,3]
[385303543,1757755905665,-480.0,0.00027123,3]
[385303544,1757755905675,-480.0,0.00027123,3]
[385303545,1757755905686,-480.0,0.00027123,3]
[385303546,1757755905695,-480.0,0.00027123,3]
[385303547,1757755905705,-480.0,0.00027123,3]
[385303548,1757755905715,-480.0,0.00027123,3]
[385303549,1757755905724,-480.0,0.00027123,3]
[385303550,1757755905734,-480.0,0.00027123,3]
[385303551,1757755905743,-480.0,0.00027123,3]
[385303552,1757755905752,-480.0,0.00027123,3]
[385303553,1757755905762,-481.71316032,0.00027123,3]
[385303554,1757755905771,-540.09742898,0.00027123,3]
[385303555,1757755905781,-480.0,0.00027123,3]
[385303556,1757755905790,-480.0,0.00027123,3]
[385303557,1757755905800,-480.0,0.00027123,3]
[385303558,1757755905810,-480.0,0.00027123,3]
[385303559,1757755905820,-480.0,0.00027123,3]
[385303560,1757755905829,-480.0,0.00027123,3]
[385303561,1757755905839,-480.0,0.00027123,3]
[385303562,1757755905849,-480.0,0.00027123,3]
[385303563,1757755905858,-480.0,0.00027123,3]
[385303564,1757755905868,-485.55,0.00027123,3]
[385303565,1757755905878,-480.0,0.00027123,3]
[385303566,1757755905888,-480.0,0.00027123,3]
[385303567,1757755905898,-480.0,0.00027123,3]
[385303568,1757755905908,-480.0,0.00027123,3]
[385303569,1757755905927,-505.27,0.00027123,3]
[385303570,1757755905946,-480.0,0.00027123,3]
[385303571,1757755905969,-480.0,0.00027123,3]
[385303572,1757755905979,-480.0,0.00027123,3]
[385303573,1757755905989,-503.10710363,0.00027123,3]
[385303574,1757755905998,-480.0,0.00027123,3]
[385303575,1757755906008,-480.0,0.00027123,3]
[385303576,1757755906018,-480.0,0.00027123,3]
[385303577,1757755906028,-480.0,0.00027123,3]
[385303578,1757755906038,-480.0,0.00027123,3]
[385303579,1757755906047,-480.0,0.00027123,3]
[385303580,1757755906058,-480.0,0.00027123,3]
[385303581,1757755906067,-480.0,0.00027123,3]
[385303582,1757755906077,-480.0,0.00027123,3]
[385303583,1757755906087,-480.0,0.00027123,3]
[385303584,1757755906097,-480.0,0.00027123,3]
[385303585,1757755906108,-480.0,0.00027123,3]
[385303586,1757755906117,-480.0,0.00027123,3]
[385303587,1757755906127,-480.0,0.00027123,3]
[385303588,1757755906137,-728.96,0.00027123,3]
[385303589,1757755906147,-480.0,0.00027123,3]
[385303590,1757755906156,-480.0,0.00027123,3]
[385303591,1757755906166,-480.0,0.00027123,3]
[385303592,1757755906175,-508.85,0.00027123,3]
[385303593,1757755906186,-503.64,0.00027123,3]
[385303594,1757755906196,-886.0,0.00027123,3]
[385303595,1757755906205,-480.0,0.00027123,3]
[385303596,1757755906215,-480.0,0.00027123,3]
[385303597,1757755906226,-605.6,0.00027123,3]
[385303598,1757755906236,-480.0,0.00027123,3]
[385303599,1757755906245,-1273.7,0.00027123,3]
[385303600,1757755906255,-576.34,0.00027123,3]
[385303601,1757755906269,-480.0,0.00027123,3]
[385303602,1757755906280,-480.0,0.00027123,3]
[385303603,1757755906290,-480.0,0.00027123,3]
[385303604,1757755906300,-480.0,0.00027123,3]
[385303605,1757755906311,-480.0,0.00027123,3]
[385303606,1757755906320,-480.0,0.00027123,3]
[385303607,1757755906330,-193.64319658,0.00027123,3]
[385303608,1757755906340,-480.0,0.00027123,3]
[385303609,1757755906351,-531.61,0.00027123,3]
[385303610,1757755906360,-446.01177829,0.00027123,3]
[385303611,1757755906371,-576.19,0.00027123,3]
[385303612,1757755906380,-480.0,0.00027123,3]
[385303613,1757755906390,-480.0,0.00027123,3]
[385303614,1757755906400,-480.0,0.00027123,3]
[385303615,1757755906410,-480.0,0.00027123,3]
[385303616,1757755906420,-1700.77,0.00027123,3]
[385303617,1757755906431,-480.0,0.00027123,3]
[385303618,1757755906442,-489.71,0.00027123,3]
[385303619,1757755906452,-480.0,0.00027123,3]
[385303620,1757755906461,-485.61282137,0.00027123,3]
[385303621,1757755906471,-683.52,0.00027123,3]
[385303622,1757755906480,-532.68,0.00027123,3]
[385303623,1757755906489,-552.3516306,0.00027123,3]
[385303624,1757755906499,-877.42,0.00027123,3]
[385303625,1757755906508,-480.0,0.00027123,3]
[385303626,1757755906518,-2036.55,0.00027123,3]
[385303627,1757755906528,-313.48774268,0.00027123,3]
[385303628,1757755906538,-480.0,0.00027123,3]
[385303629,1757755906549,-480.0,0.00027123,3]
[385303630,1757755906558,-675.8,0.00027123,3]
[385303631,1757755906567,-480.0,0.00027123,3]
[385303632,1757755906577,-1092.94,0.00027123,3]
[385303633,1757755906587,-480.0,0.00027123,3]
[385303634,1757755906601,-864.33,0.00027123,3]
[385303635,1757755906617,-480.0,0.00027123,3]
[385303636,1757755906627,-480.0,0.00027123,3]
[385303637,1757755906637,-480.0,0.00027123,3]
[385303638,1757755906647,-480.0,0.00027123,3]
[385303639,1757755906657,-480.0,0.00027123,3]
[385303640,1757755906667,-480.0,0.00027123,3]
[385303641,1757755906676,-480.0,0.00027123,3]
[385303642,1757755906688,-7300.91,0.00027123,3]
[385303643,1757755906698,-393.01071296,0.00027123,3]
[385303644,1757755906707,-154.95064311,0.00027123,3]
[385303645,1757755906717,-480.0,0.00027123,3]
[385303646,1757755906727,-480.0,0.00027123,3]
[385303647,1757755906736,-480.0,0.00027123,3]
[385303648,1757755906746,-480.0,0.00027123,3]
[385303649,1757755906756,-1623.88,0.00027123,3]
[385303650,1757755906765,-480.0,0.00027123,3]
[385303651,1757755906774,-480.0,0.00027123,3]
[385303652,1757755906784,-480.0,0.00027123,3]
[385303653,1757755906794,-1080.81,0.00027123,3]
[385303654,1757755906805,-288.50775089,0.00027123,3]
[385303655,1757755906816,-617.47489364,0.00027123,3]
[385303656,1757755906826,-480.0,0.00027123,3]
[385303657,1757755906837,-480.0,0.00027123,3]
[385303658,1757755906850,-480.0,0.00027123,3]
[385303659,1757755906859,-480.0,0.00027123,3]
[385303660,1757755906868,-480.0,0.00027123,3]
[385303661,1757755906878,-480.0,0.00027123,3]
[385303662,1757755906888,-480.0,0.00027123,3]
[385303663,1757755906897,-480.0,0.00027123,3]
[385303664,1757755906906,-480.0,0.00027123,3]
[385303665,1757755906915,-480.0,0.00027123,3]
[385303666,1757755906925,-586.32,0.00027123,3]
[385303667,1757755906935,-866.22,0.00027123,3]
[385303668,1757755906945,-585.1,0.00027123,3]
[385303669,1757755906954,-4460.51,0.00027123,3]
[385303670,1757755906963,-774.68,0.00027123,3]
[385303671,1757755906973,-480.0,0.00027123,3]
[385303672,1757755906982,-480.0,0.00027123,3]
[385303673,1757755906991,-480.0,0.00027123,3]
[385303674,1757755907000,-597.16,0.00027123,3]
[385303675,1757755907010,-480.0,0.00027123,3]
[385303676,1757755907020,-581.02871198,0.00027123,3]
[385303677,1757755907034,-11885.11,0.00027123,3]
[385303678,1757755907043,-829.91,0.00027123,3]
[385303679,1757755907052,-646.07,0.00027123,3]
[385303680,1757755907062,-480.0,0.00027123,3]
[385303681,1757755907072,-490.24,0.00027123,3]
[385303682,1757755907081,-500.7,0.00027123,3]
[385303683,1757755907091,-891.22,0.00027123,3]
[385303684,1757755907101,-1033.36,0.00027123,3]
[385303685,1757755907110,-534.4,0.00027123,3]
[385303686,1757755907120,-480.0,0.00027123,3]
[385303687,1757755907130,-480.0,0.00027123,3]
[385303688,1757755907140,-541.98,0.00027123,3]
[385303689,1757755907150,-977.05,0.00027123,3]
[385303690,1757755907159,-480.0,0.00027123,3]
[385303691,1757755907169,-681.35,0.00027123,3]
[385303692,1757755907179,-480.0,0.00027123,3]
[385303693,1757755907189,-480.0,0.00027123,3]
[385303694,1757755907199,-480.0,0.00027123,3]
[385303695,1757755907208,-480.0,0.00027123,3]
[385303696,1757755907218,-480.0,0.00027123,3]
[385303697,1757755907227,-480.0,0.00027123,3]
[385303698,1757755907236,-480.0,0.00027123,3]
[385303699,1757755907246,-579.86,0.00027123,3]
[385303700,1757755907255,-480.0,0.00027123,3]
[385303701,1757755907269,-489.25710682,0.00027123,3]
[385303702,1757755907278,-480.0,0.00027123,3]
[385303703,1757755907287,-480.0,0.00027123,3]
[385303704,1757755907296,-6737.45,0.00027123,3]
[385303705,1757755907305,-2411.48,0.00027123,3]
[385303706,1757755907315,-4800.05,0.00027123,3]
[385303707,1757755907324,-480.0,0.00027123,3]
[385303708,1757755907333,-480.0,0.00027123,3]
[385303709,1757755907342,-1662.72,0.00027123,3]
[385303710,1757755907351,-480.0,0.00027123,3]
[385303711,1757755907360,-836.54,0.00027123,3]
[385303712,1757755907369,-480.0,0.00027123,3]
[385303713,1757755907378,-1708.68,0.00027123,3]
[385303714,1757755907388,-480.0,0.00027123,3]
[385303715,1757755907397,-619.88,0.00027123,3]
[385303716,1757755907406,-1393.21,0.00027123,3]
[385303717,1757755907415,-1863.52,0.00027123,3]
[385303718,1757755907424,-480.0,0.00027123,3]
[385303719,1757755907433,-1307.29,0.00027123,3]
[385303720,1757755907442,-480.0,0.00027123,3]
[385303721,1757755907452,-480.0,0.00027123,3]
[385303722,1757755907461,-528.66,0.00027123,3]
[385303723,1757755907470,-480.0,0.00027123,3]
[385303724,1757755907480,-494.96,0.00027123,3]
[385303725,1757755907489,-1103.37,0.00027123,3]
[385303726,1757755907499,-518.27,0.00027123,3]
[385303727,1757755907508,-480.0,0.00027123,3]
[385303728,1757755907518,-516.82,0.00027123,3]
[385303729,1757755907527,-487.61,0.00027123,3]
[385303730,1757755907537,-832.35,0.00027123,3]
[385303731,1757755907547,-480.0,0.00027123,3]
[385303732,1757755907556,-480.0,0.00027123,3]
[385303733,1757755907565,-480.0,0.00027123,3]
[385303734,1757755907574,-480.0,0.00027123,3]
[385303735,1757755907583,-1916.67,0.00027123,3]
[385303736,1757755907593,-480.0,0.00027123,3]
[385303737,1757755907603,-659.4,0.00027123,3]
[385303738,1757755907612,-480.0,0.00027123,3]
[385303739,1757755907622,-480.0,0.00027123,3]
[385303740,1757755907631,-480.0,0.00027123,3]
[385303741,1757755907641,-480.0,0.00027123,3]
[385303742,1757755907651,-480.0,0.00027123,3]
[385303743,1757755907661,-480.0,0.00027123,3]
[385303744,1757755907670,-480.0,0.00027123,3]
[385303745,1757755907679,-597.41,0.00027123,3]
[385303746,1757755907690,-480.0,0.00027123,3]
[385303747,1757755907699,-480.0,0.00027123,3]
[385303748,1757755907709,-606.7,0.00027123,3]
[385303749,1757755907718,-3205.05,0.00027123,3]
[385303750,1757755907728,-480.0,0.00027123,3]
[385303751,1757755907737,-480.0,0.00027123,3]
[385303752,1757755907747,-480.0,0.00027123,3]
[385303753,1757755907756,-498.66242985,0.00027123,3]
[385303754,1757755907765,-744.12,0.00027123,3]
[385303755,1757755907774,-480.0,0.00027123,3]
[385303756,1757755907785,-480.0,0.00027123,3]
[385303757,1757755907794,-610.25441457,0.00027123,3]
[385303758,1757755907804,-2631.63,0.00027123,3]
[385303759,1757755907814,-603.03,0.00027123,3]
[385303760,1757755907825,-500.0,0.00027124,2]
[385303761,1757755907839,-151.26,0.00027137,7]
[385303762,1757755907852,-5000.0,0.00027165,3]
[385303763,1757755907861,-1121.43,0.00027171,7]
[385303764,1757755907870,-500.0,0.000272,2]
[385303765,1757755907880,-151.26,0.00027237,7]
[385303766,1757755907889,-1121.43,0.00027271,7]
[385303767,1757755907899,-1157.45,0.000273,7]
[385303768,1757755907908,-151.26,0.00027337,7]
[385303769,1757755907918,-389.2045971,0.0002737,2]
[385303770,1757755907928,-389.2045971,0.0002737,2]
[385303771,1757755907938,-389.2045971,0.0002737,2]
[385303772,1757755907947,-389.2045971,0.0002737,2]
[385303773,1757755907956,-389.2045971,0.0002737,2]
[385303774,1757755907966,-389.2045971,0.0002737,2]
[385303775,1757755907975,-389.2045971,0.0002737,2]
[385303776,1757755907984,-389.2045971,0.0002737,2]
[385303777,1757755907994,-389.2045971,0.0002737,2]
[385303778,1757755908003,-389.2045971,0.0002737,2]
[385303779,1757755908012,-389.2045971,0.0002737,2]
[385303780,1757755908022,-389.2045971,0.0002737,2]
[385303781,1757755908031,-389.2045971,0.0002737,2]
[385303782,1757755908041,-389.2045971,0.0002737,2]
[385303783,1757755908050,-389.2045971,0.0002737,2]
[385303784,1757755908060,-389.2045971,0.0002737,2]
[385303785,1757755908069,-389.2045971,0.0002737,2]
[385303786,1757755908078,-389.2045971,0.0002737,2]
[385303787,1757755908087,-389.2045971,0.0002737,2]
[385303788,1757755908097,-1121.43,0.00027371,7]
[385303789,1757755908106,-500.0,0.00027378,2]
[385303790,1757755908115,-260.81301056,0.00027388,2]
[385303791,1757755908125,-2999.999999,0.0002739,2]
[385303792,1757755908134,-2869.46647421,0.00027394,7]
[385303793,1757755908143,-1035.06,0.00027397,3]
[385303794,1757755908152,-480.0,0.00027397,3]
[385303795,1757755908161,-480.0,0.00027397,3]
[385303796,1757755908171,-480.0,0.00027397,3]
[385303797,1757755908180,-480.0,0.00027397,3]
[385303798,1757755908190,-480.0,0.00027397,3]
[385303799,1757755908199,-480.0,0.00027397,3]
[385303800,1757755908209,-480.0,0.00027397,3]
[385303801,1757755908219,-480.0,0.00027397,3]
[385303802,1757755908228,-480.0,0.00027397,3]
[385303803,1757755908237,-480.0,0.00027397,3]
[385303804,1757755908246,-480.0,0.00027397,3]
[385303805,1757755908256,-480.0,0.00027397,3]
[385303806,1757755908269,-480.0,0.00027397,3]
[385303807,1757755908278,-480.0,0.00027397,3]
[385303808,1757755908287,-480.0,0.00027397,3]
[385303809,1757755908296,-480.0,0.00027397,3]
[385303810,1757755908306,-480.0,0.00027397,3]
[385303811,1757755908315,-480.0,0.00027397,3]
[385303812,1757755908324,-480.0,0.00027397,3]
[385303813,1757755908334,-480.0,0.00027397,3]
[385303814,1757755908343,-480.0,0.00027397,3]
[385303815,1757755908353,-480.0,0.00027397,3]
[385303816,1757755908363,-480.0,0.00027397,3]
[385303817,1757755908372,-480.0,0.00027397,3]
[385303818,1757755908382,-480.0,0.00027397,3]
[385303819,1757755908392,-480.0,0.00027397,3]
[385303820,1757755908402,-480.0,0.00027397,3]
[385303821,1757755908411,-480.0,0.00027397,3]
[385303822,1757755908420,-480.0,0.00027397,3]
[385303823,1757755908430,-480.0,0.00027397,3]
[385303824,1757755908439,-480.0,0.00027397,3]
[385303825,1757755908449,-480.0,0.00027397,3]
[385303826,1757755908458,-480.0,0.00027397,3]
[385303827,1757755908468,-480.0,0.00027397,3]
[385303828,1757755908477,-480.0,0.00027397,3]
[385303829,1757755908486,-499.1,0.00027397,3]
[385303830,1757755908496,-480.69,0.00027397,3]
[385303831,1757755908505,-480.0,0.00027397,3]
[385303832,1757755908514,-480.0,0.00027397,3]
[385303833,1757755908523,-480.0,0.00027397,3]
[385303834,1757755908532,-519.58,0.00027397,3]
[385303835,1757755908542,-385.01656162,0.00027397,3]
[385303836,1757755908551,-444.86832342,0.00027397,3]
[385303837,1757755908561,-619.65,0.00027397,3]
[385303838,1757755908571,-480.0,0.00027397,3]
[385303839,1757755908580,-587.99,0.00027397,3]
[385303840,1757755908590,-480.0,0.00027397,3]
[385303841,1757755908600,-523.11,0.00027397,3]
[385303842,1757755908609,-480.0,0.00027397,3]
[385303843,1757755908618,-653.04,0.00027397,3]
[385303844,1757755908627,-687.36,0.00027397,3]
[385303845,1757755908637,-480.0,0.00027397,3]
[385303846,1757755908646,-480.0,0.00027397,3]
[385303847,1757755908656,-484.0,0.00027397,3]
[385303848,1757755908666,-480.0,0.00027397,3]
[385303849,1757755908675,-480.0,0.00027397,3]
[385303850,1757755908685,-480.0,0.00027397,3]
[385303851,1757755908694,-523.39,0.00027397,3]
[385303852,1757755908702,-480.0,0.00027397,3]
[385303853,1757755908711,-509.39,0.00027397,3]
[385303854,1757755908720,-480.0,0.00027397,3]
[385303855,1757755908729,-480.0,0.00027397,3]
[385303856,1757755908738,-480.0,0.00027397,3]
[385303857,1757755908747,-480.0,0.00027397,3]
[385303858,1757755908756,-480.0,0.00027397,3]
[385303859,1757755908765,-480.0,0.00027397,3]
[385303860,1757755908775,-480.0,0.00027397,3]
[385303861,1757755908784,-480.0,0.00027397,3]
[385303862,1757755908793,-480.0,0.00027397,3]
[385303863,1757755908802,-480.0,0.00027397,3]
[385303864,1757755908812,-1336.28,0.00027397,3]
[385303865,1757755908821,-480.0,0.00027397,3]
[385303866,1757755908831,-480.0,0.00027397,3]
[385303867,1757755908841,-480.0,0.00027397,3]
[385303868,1757755908851,-480.0,0.00027397,3]
[385303869,1757755908860,-480.0,0.00027397,3]
[385303870,1757755908870,-480.0,0.00027397,3]
[385303871,1757755908879,-480.0,0.00027397,3]
[385303872,1757755908888,-480.0,0.00027397,3]
[385303873,1757755908898,-480.0,0.00027397,3]
[385303874,1757755908907,-480.0,0.00027397,3]
[385303875,1757755908917,-501.62,0.00027397,3]
[385303876,1757755908926,-480.0,0.00027397,3]
[385303877,1757755908936,-514.0,0.00027397,3]
[385303878,1757755909095,-480.0,0.00027397,3]
[385303879,1757755909105,-480.0,0.00027397,3]
[385303880,1757755909114,-480.0,0.00027397,3]
[385303881,1757755909124,-480.0,0.00027397,3]
[385303882,1757755909133,-480.0,0.00027397,3]
[385303883,1757755909143,-480.0,0.00027397,3]
[385303884,1757755909152,-480.0,0.00027397,3]
[385303885,1757755909162,-537.4,0.00027397,3]
[385303886,1757755909171,-480.0,0.00027397,3]
[385303887,1757755909181,-606.47,0.00027397,3]
[385303888,1757755909190,-627.39,0.00027397,3]
[385303889,1757755909200,-480.0,0.00027397,3]
[385303890,1757755909209,-480.0,0.00027397,3]
[385303891,1757755909219,-515.6,0.00027397,3]
[385303892,1757755909228,-480.0,0.00027397,3]
[385303893,1757755909237,-480.0,0.00027397,3]
[385303894,1757755909247,-480.0,0.00027397,3]
[385303895,1757755909258,-480.0,0.00027397,3]
[385303896,1757755909268,-480.0,0.00027397,3]
[385303897,1757755909277,-657.1,0.00027397,7]
[385303898,1757755909287,-657.1,0.00027397,7]
[385303899,1757755909296,-657.1,0.00027397,7]
[385303900,1757755909305,-480.0,0.00027397,3]
[385303901,1757755909315,-657.1,0.00027397,7]
[385303902,1757755909324,-480.0,0.00027397,3]
[385303903,1757755909334,-657.1,0.00027397,7]
[385303904,1757755909343,-657.1,0.00027397,7]
[385303905,1757755909351,-657.1,0.00027397,7]
[385303906,1757755909360,-657.1,0.00027397,7]
[385303907,1757755909369,-657.1,0.00027397,7]
[385303908,1757755909378,-657.1,0.00027397,7]
[385303909,1757755909387,-657.1,0.00027397,7]
[385303910,1757755909397,-495.99148436,0.00027397,3]
[385303911,1757755909407,-480.0,0.00027397,3]
[385303912,1757755909416,-4289.53,0.00027397,3]
[385303913,1757755909425,-480.0,0.00027397,3]
[385303914,1757755909434,-480.0,0.00027397,3]
[385303915,1757755909443,-615.59,0.00027397,3]
[385303916,1757755909452,-1017.38,0.00027397,3]
[385303917,1757755909462,-480.0,0.00027397,3]
[385303918,1757755909471,-480.0,0.00027397,3]
[385303919,1757755909481,-480.0,0.00027397,3]
[385303920,1757755909490,-480.0,0.00027397,3]
[385303921,1757755909500,-480.0,0.00027397,3]
[385303922,1757755909509,-480.0,0.00027397,3]
[385303923,1757755909519,-480.0,0.00027397,3]
[385303924,1757755909527,-221.02432962,0.00027397,3]
[385303925,1757755909537,-480.0,0.00027397,3]
[385303926,1757755909546,-480.0,0.00027397,3]
[385303927,1757755909555,-480.0,0.00027397,3]
[385303928,1757755909564,-480.0,0.00027397,3]
[385303929,1757755909574,-480.0,0.00027397,3]
[385303930,1757755909583,-480.0,0.00027397,3]
[385303931,1757755909592,-480.0,0.00027397,3]
[385303932,1757755909602,-480.0,0.00027397,3]
[385303933,1757755909611,-480.0,0.00027397,3]
[385303934,1757755909620,-480.0,0.00027397,3]
[385303935,1757755909630,-480.0,0.00027397,3]
[385303936,1757755909639,-480.0,0.00027397,3]